fUSD/lending_fUSD_20251105
["ID","MTS","AMOUNT","RATE_DAILY","PERIOD"]
[393220952,1762341031953,-752.75,0.00016782,3]
[393220953,1762341031963,-550.0,0.0001679,2]
[393220954,1762341031972,-500.0,0.00016791,2]
[393220955,1762341031982,-500.0,0.00016791,2]
[393220957,1762341031991,-500.0,0.00016791,2]
[393220959,1762341032000,-500.0,0.00016791,2]
[393220961,1762341032009,-500.0,0.00016791,2]
[393220963,1762341032018,-500.0,0.00016791,2]
[393220965,1762341032027,-500.0,0.00016791,2]
[393220967,1762341032036,-412.32,0.00016791,2]
[393220969,1762341032045,-500.0,0.00016791,2]
[393220971,1762341032054,-500.0,0.00016791,2]
[393220973,1762341032064,-155.56479245,0.00016791,2]
[393220974,1762341032073,-500.0,0.00016791,2]
[393220975,1762341032082,-500.0,0.00016791,2]
[393220976,1762341032091,-392.82623686,0.00016791,2]
[393220977,1762341032100,-500.0,0.00016791,2]
[393220978,1762341032109,-500.0,0.00016791,2]
[393220979,1762341032118,-500.0,0.00016791,2]
[393220980,1762341032128,-500.0,0.00016791,2]
[393220981,1762341032137,-500.0,0.00016791,2]
[393220982,1762341032147,-500.0,0.00016791,2]
[393220983,1762341032156,-500.0,0.00016791,2]
[393220984,1762341032165,-500.0,0.00016791,2]
[393220985,1762341032174,-500.0,0.00016791,2]
[393220986,1762341032183,-500.0,0.00016791,2]
[393220987,1762341032194,-500.0,0.00016791,2]
[393220988,1762341032205,-500.0,0.00016791,2]
[393220989,1762341032215,-500.0,0.00016791,2]
[393220990,1762341032224,-500.0,0.00016791,2]
[393220991,1762341032235,-500.0,0.00016791,2]
[393220992,1762341032244,-500.0,0.00016791,2]
[393220993,1762341032253,-500.0,0.00016791,2]
[393220994,1762341032263,-500.0,0.00016791,2]
[393220995,1762341032273,-500.0,0.00016791,2]
[393220996,1762341032283,-500.0,0.00016791,2]
[393220997,1762341032292,-500.0,0.00016791,2]
[393220998,1762341032300,-500.0,0.00016791,2]
[393220999,1762341032310,-500.0,0.00016791,2]
[393221000,1762341032319,-500.0,0.00016791,2]
[393221001,1762341032328,-500.0,0.00016791,2]
[393221002,1762341032337,-500.0,0.00016791,2]
[393221003,1762341032346,-500.0,0.00016791,2]
[393221004,1762341032355,-500.0,0.00016791,2]
[393221005,1762341032364,-500.0,0.00016791,2]
[393221006,1762341032373,-500.0,0.00016791,2]
[393221007,1762341032382,-500.0,0.00016791,2]
[393221008,1762341032392,-500.0,0.00016791,2]
[393221009,1762341032401,-500.0,0.00016791,2]
[393221010,1762341032410,-500.0,0.00016791,2]
[393221011,1762341032420,-500.0,0.00016791,2]
[393221012,1762341032429,-500.0,0.00016791,2]
[393221013,1762341032438,-500.0,0.00016791,2]
[393221014,1762341032449,-500.0,0.00016791,2]
[393221015,1762341032458,-500.0,0.00016791,2]
[393221016,1762341032467,-500.0,0.00016791,2]
[393221017,1762341032476,-500.0,0.00016791,2]
[393221018,1762341032485,-500.0,0.00016791,2]
[393221019,1762341032495,-500.0,0.00016791,2]
[393221020,1762341032505,-632.4310512,0.00016791,2]
[393221021,1762341032514,-500.0,0.00016791,2]
[393221022,1762341032523,-500.0,0.00016791,2]
[393221023,1762341032533,-500.0,0.00016791,2]
[393221024,1762341032543,-500.0,0.00016791,2]
[393221025,1762341032552,-500.0,0.00016791,2]
[393221026,1762341032561,-119802.38048271,0.00016792,2]
[393221027,1762341033052,-12835.72228178,0.00016792,2]
[393221028,1762341033104,-36044.05274668,0.00016792,2]
[393221034,1762341037716,-500.0,0.00016791,2]
[393221035,1762341037727,-599.99999999,0.00016791,2]
[393221036,1762341037738,-500.0,0.00016791,2]
[393221037,1762341037749,-500.0,0.00016791,2]
[393221038,1762341037759,-500.0,0.00016791,2]
[393221039,1762341037769,-275.83515661,0.00016791,2]
[393221040,1762341037781,-224.16484339,0.00016791,2]
[393221041,1762341037790,-259.8097563,0.00016791,2]
[393221042,1762341037804,-240.1902437,0.00016791,2]
[393221043,1762341037813,-259.8097563,0.00016792,2]
[393221044,1762341037824,-305.37,0.00016792,2]
[393221045,1762341037930,-25911.05844825,0.00016792,2]
[393221046,1762341037943,-1641.97699232,0.00016792,2]
[393221052,1762341039894,-9421.42609459,0.00016792,2]
[393221053,1762341039906,-1038.98552268,0.00016792,2]
[393221054,1762341039920,-212739.21767469,0.00016792,2]
[393221055,1762341039931,-1000.0,0.00016792,2]
[393221056,1762341039942,-2756.19950172,0.00016826,2]
[393221057,1762341039953,-500.0,0.00016891,2]
[393221058,1762341039964,-500.0,0.00016891,2]
[393221059,1762341039975,-4087.32,0.00016925,2]
[393221060,1762341039986,-2756.19950172,0.0001696,2]
[393221061,1762341039996,-150.0,0.00016961,2]
[393221062,1762341040006,-150.0,0.00016961,2]
[393221063,1762341040015,-150.0,0.00016961,2]
[393221064,1762341040025,-150.0,0.00016961,2]
[393221065,1762341040035,-500.0,0.00016961,2]
[393221066,1762341040049,-150.0,0.00016961,2]
[393221067,1762341040059,-500.0,0.00016961,2]
[393221068,1762341040069,-150.0,0.00016961,2]
[393221069,1762341040079,-500.0,0.00016961,2]
[393221070,1762341040091,-150.0,0.00016961,2]
[393221071,1762341040101,-322.6107,0.0001699,2]
[393221072,1762341040111,-500.0,0.0001699,2]
[393221073,1762341040120,-500.0,0.0001699,2]
[393221074,1762341040130,-500.0,0.0001699,2]
[393221075,1762341040140,-500.0,0.0001699,2]
[393221076,1762341040150,-500.0,0.0001699,2]
[393221077,1762341040159,-500.0,0.0001699,2]
[393221078,1762341040169,-500.0,0.0001699,2]
[393221079,1762341040179,-229.88083534,0.0001699,2]
[393221080,1762341040188,-500.0,0.0001699,2]
[393221081,1762341040199,-500.0,0.0001699,2]
[393221082,1762341040210,-500.0,0.0001699,2]
[393221083,1762341040219,-500.0,0.0001699,2]
[393221084,1762341040229,-500.0,0.0001699,2]
[393221085,1762341040238,-500.0,0.0001699,2]
[393221086,1762341040248,-500.0,0.0001699,2]
[393221087,1762341040257,-500.0,0.0001699,2]
[393221088,1762341040267,-3000.0,0.00017,2]
[393221089,1762341040277,-412.32,0.00017065,2]
[393221090,1762341040287,-2756.19950172,0.00017095,2]
[393221091,1762341040296,-176.45341762,0.00017095,2]
[393221092,1762341040305,-295.33139851,0.00017095,2]
[393221093,1762341040315,-150.0,0.00017095,2]
[393221094,1762341040324,-500.0,0.00017095,2]
[393221095,1762341040334,-150.0,0.00017095,2]
[393221096,1762341040343,-150.0,0.00017095,2]
[393221098,1762341040353,-150.0,0.00017095,2]
[393221099,1762341040363,-150.38503355,0.00017095,2]
[393221100,1762341040373,-150.0,0.00017095,2]
[393221101,1762341040383,-150.0,0.00017095,2]
[393221102,1762341040392,-500.0,0.00017095,2]
[393221103,1762341040402,-150.0,0.00017095,2]
[393221104,1762341040411,-150.0,0.00017095,2]
[393221105,1762341040420,-500.0,0.00017095,2]
[393221106,1762341040430,-150.0,0.00017095,2]
[393221107,1762341040443,-500.0,0.00017095,2]
[393221108,1762341040452,-150.0,0.00017095,2]
[393221109,1762341040462,-500.0,0.00017095,2]
[393221110,1762341040472,-500.0,0.00017095,2]
[393221111,1762341040482,-150.0,0.00017098,2]
[393221112,1762341040492,-150.0,0.00017098,2]
[393221113,1762341040502,-150.0,0.00017098,2]
[393221114,1762341040512,-500.0,0.00017098,2]
[393221115,1762341040521,-500.0,0.00017098,2]
[393221116,1762341040531,-150.0,0.00017098,2]
[393221117,1762341040540,-500.0,0.00017098,2]
[393221118,1762341040550,-150.0,0.00017098,2]
[393221119,1762341040560,-800.0,0.000171,6]
[393221120,1762341040570,-250.0,0.00017112,2]
[393221121,1762341040580,-500.0,0.00017151,2]
[393221122,1762341040590,-1600.0,0.000172,6]
[393221123,1762341040601,-2756.19950172,0.00017229,2]
[393221124,1762341040611,-217.3955486,0.00017232,2]
[393221125,1762341040620,-500.0,0.00017232,2]
[393221126,1762341040630,-150.0,0.00017232,2]
[393221127,1762341040640,-151.13904288,0.00017232,2]
[393221128,1762341040650,-150.0,0.00017232,2]
[393221129,1762341040660,-150.0,0.00017232,2]
[393221130,1762341040669,-150.0,0.00017232,2]
[393221131,1762341040679,-500.0,0.00017232,2]
[393221133,1762341040688,-150.0,0.00017232,2]
[393221135,1762341040698,-500.0,0.00017232,2]
[393221137,1762341040708,-500.0,0.00017232,2]
[393221139,1762341040717,-500.0,0.00017232,2]
[393221141,1762341040727,-500.0,0.00017232,2]
[393221143,1762341040737,-150.0,0.00017235,2]
[393221145,1762341040746,-150.0,0.00017235,2]
[393221147,1762341040756,-500.0,0.00017235,2]
[393221149,1762341040766,-500.0,0.00017235,2]
[393221151,1762341040775,-150.0,0.00017235,2]
[393221153,1762341040785,-500.0,0.00017235,2]
[393221155,1762341040795,-150.0,0.00017235,2]
[393221157,1762341040804,-167.89711619,0.00017296,2]
[393221158,1762341040814,-2500.0,0.000173,6]
[393221159,1762341040827,-2446.0,0.00017319,2]
[393221160,1762341040837,-1002.61889303,0.00017321,2]
[393221161,1762341040846,-500.0,0.00017321,2]
[393221162,1762341040856,-500.0,0.00017321,2]
[393221163,1762341040865,-524.46659852,0.00017321,2]
[393221164,1762341040875,-412.32,0.00017339,2]
[393221165,1762341040889,-500.0,0.00017354,2]
[393221166,1762341040899,-2446.0,0.00017355,2]
[393221167,1762341040908,-2756.19950172,0.00017363,2]
[393221168,1762341040919,-150.0,0.00017369,2]
[393221169,1762341040929,-150.0,0.00017369,2]
[393221170,1762341040939,-150.0,0.00017369,2]
[393221171,1762341040948,-500.0,0.00017369,2]
[393221172,1762341040960,-150.0,0.00017369,2]
[393221173,1762341040970,-500.0,0.00017369,2]
[393221174,1762341040979,-150.0,0.00017369,2]
[393221175,1762341040989,-500.0,0.00017369,2]
[393221176,1762341040999,-500.0,0.00017369,2]
[393221177,1762341041008,-150.0,0.00017372,2]
[393221178,1762341041021,-150.0,0.00017372,2]
[393221179,1762341041032,-500.0,0.00017372,2]
[393221180,1762341041042,-500.0,0.00017372,2]
[393221181,1762341041052,-150.0,0.00017372,2]
[393221182,1762341041061,-500.0,0.00017372,2]
[393221183,1762341041071,-3300.0,0.000174,6]
[393221184,1762341041081,-216.95,0.00017419,2]
[393221185,1762341041091,-532.88987397,0.00017432,2]
[393221186,1762341041101,-500.0,0.00017452,2]
[393221187,1762341041110,-2756.19950172,0.00017497,2]
[393221188,1762341041120,-176.45341762,0.00017497,2]
[393221189,1762341041129,-4200.0,0.000175,6]
[393221190,1762341041139,-200.0,0.00017506,2]
[393221191,1762341041149,-150.0,0.00017506,2]
[393221192,1762341041158,-602.60559839,0.00017506,2]
[393221193,1762341041168,-150.0,0.00017506,2]
[393221194,1762341041177,-531.50662984,0.00017506,2]
[393221195,1762341041187,-500.0,0.00017506,2]
[393221196,1762341041197,-500.0,0.00017506,2]
[393221197,1762341041206,-200.0,0.00017509,2]
[393221198,1762341041219,-150.0,0.00017509,2]
[393221199,1762341041228,-500.0,0.00017509,2]
[393221200,1762341041237,-500.0,0.00017509,2]
[393221201,1762341041247,-150.0,0.00017509,2]
[393221202,1762341041256,-500.0,0.00017509,2]
[393221203,1762341041265,-204.62124564,0.00017546,2]
[393221204,1762341041275,-1000.0,0.00017592,2]
[393221205,1762341041285,-874.96853589,0.00017596,2]
[393221206,1762341041295,-800.0,0.000176,6]
[393221207,1762341041305,-412.32,0.00017613,2]
[393221208,1762341041314,-2756.19950172,0.00017632,2]
[393221209,1762341041323,-224.96766427,0.00017643,2]
[393221210,1762341041332,-500.0,0.00017643,2]
[393221211,1762341041342,-500.0,0.00017643,2]
[393221212,1762341041351,-200.0,0.00017646,2]
[393221213,1762341041361,-527.0,0.00017646,2]
[393221214,1762341041370,-500.0,0.00017646,2]
[393221215,1762341041380,-500.0,0.00017646,2]
[393221216,1762341041389,-210.0,0.00017679,2]
[393221217,1762341041599,-2446.0,0.00017688,2]
[393221218,1762341041608,-5888.0,0.00017694,2]
[393221219,1762341041618,-2446.0,0.00017697,2]
[393221220,1762341041627,-800.0,0.000177,6]
[393221221,1762341041636,-221.75791629,0.00017711,2]
[393221222,1762341041646,-600.0,0.00017726,2]
[393221223,1762341041657,-500.0,0.00017727,2]
[393221224,1762341041667,-345.92808519,0.00017727,2]
[393221225,1762341041676,-2500.0,0.00017742,3]
[393221226,1762341041685,-2500.0,0.0001775,3]
[393221227,1762341041696,-2500.0,0.00017759,3]
[393221228,1762341041706,-2756.19950172,0.00017766,2]
[393221229,1762341041716,-2500.0,0.00017768,3]
[393221230,1762341041725,-210.0,0.00017776,2]
[393221231,1762341041743,-2500.0,0.00017777,3]
[393221232,1762341041754,-500.0,0.0001778,2]
[393221233,1762341041764,-500.0,0.0001778,2]
[393221234,1762341041774,-408.96050936,0.00017783,2]
[393221235,1762341041783,-500.0,0.00017783,2]
[393221236,1762341041793,-2500.0,0.00017786,3]
[393221237,1762341041803,-1000.0,0.00017792,2]
[393221238,1762341041813,-2500.0,0.00017794,3]
[393221239,1762341041824,-800.0,0.000178,6]
[393221240,1762341041837,-2500.0,0.00017803,3]
[393221241,1762341041847,-2500.0,0.00017812,3]
[393221242,1762341041858,-337.92378644,0.00017813,2]
[393221243,1762341041867,-1425.0,0.00017815,2]
[393221244,1762341041878,-436.78007,0.0001782,2]
[393221245,1762341041888,-2500.0,0.00017821,3]
[393221246,1762341041897,-2686.299,0.00017821,2]
[393221247,1762341041907,-181.671,0.00017821,2]
[393221248,1762341041916,-2500.0,0.0001783,3]
[393221249,1762341041927,-559.0,0.00017836,2]
[393221250,1762341041936,-6664.249,0.00017836,2]
[393221251,1762341041945,-6473.0,0.00017836,2]
[393221252,1762341041957,-2141.0,0.00017836,2]
[393221253,1762341041967,-2500.0,0.00017838,3]
[393221254,1762341041976,-2500.0,0.00017847,3]
[393221255,1762341041986,-2500.0,0.00017856,3]
[393221256,1762341041995,-200.0,0.00017856,2]
[393221257,1762341042006,-2500.0,0.00017865,3]
[393221258,1762341042015,-500.0,0.00017873,2]
[393221259,1762341042025,-500.0,0.00017873,2]
[393221260,1762341042034,-2500.0,0.00017874,3]
[393221261,1762341042043,-2500.0,0.00017882,3]
[393221262,1762341042053,-412.35998749,0.00017887,2]
[393221263,1762341042063,-2500.0,0.00017891,3]
[393221264,1762341042073,-500.0,0.00017899,2]
[393221265,1762341042082,-33254.3761,0.000179,2]
[393221266,1762341042092,-2500.0,0.000179,3]
[393221267,1762341042101,-2756.19950172,0.000179,2]
[393221268,1762341042111,-176.45341762,0.000179,2]
[393221269,1762341042120,-5000.0,0.000179,2]
[393221270,1762341042135,-167.89711619,0.000179,2]
[393221271,1762341042144,-800.0,0.000179,6]
[393221272,1762341042154,-1257.84120585,0.000179,2]
[393221273,1762341042164,-208.98782464,0.000179,2]
[393221274,1762341042173,-2102.5531803,0.000179,2]
[393221275,1762341042183,-150.0,0.00017917,2]
[393221276,1762341042192,-500.0,0.00017917,2]
[393221277,1762341042202,-500.0,0.0001792,2]
[393221278,1762341042212,-210.0,0.00017928,2]
[393221279,1762341042222,-1000.0,0.0001797,2]
[393221280,1762341042232,-1000.0,0.0001797,2]
[393221281,1762341042241,-1000.0,0.0001797,2]
[393221282,1762341042252,-1275.49060352,0.0001797,2]
[393221283,1762341042262,-500.0,0.0001797,2]
[393221284,1762341042273,-500.0,0.0001797,2]
[393221285,1762341042282,-1000.0,0.0001797,2]
[393221286,1762341042292,-500.0,0.0001797,2]
[393221287,1762341042301,-184.0,0.00017973,2]
[393221288,1762341042310,-500.0,0.00017973,2]
[393221289,1762341042319,-500.0,0.00017973,2]
[393221290,1762341042330,-500.0,0.00017973,2]
[393221291,1762341042340,-500.0,0.00017973,2]
[393221292,1762341042350,-500.0,0.00017973,2]
[393221293,1762341042360,-526.97417282,0.00017973,2]
[393221294,1762341042370,-500.0,0.00017973,2]
[393221295,1762341042379,-369.18541014,0.00017973,2]
[393221296,1762341042389,-517.35927454,0.00017973,2]
[393221297,1762341042399,-500.0,0.00017973,2]
[393221298,1762341042409,-500.0,0.00017973,2]
[393221299,1762341042419,-500.0,0.00017973,2]
[393221300,1762341042428,-1425.0,0.00017985,2]
[393221301,1762341042437,-1131.65233575,0.0001799,2]
[393221302,1762341042447,-1131.65233575,0.0001799,2]
[393221303,1762341042456,-1131.65233575,0.0001799,2]
[393221304,1762341042466,-150.0,0.00017999,2]
[393221306,1762341042475,-150.0,0.00017999,2]
[393221308,1762341042484,-500.0,0.00017999,2]
[393221309,1762341042497,-500.0,0.00017999,2]
[393221310,1762341042507,-399.20805107,0.00017999,2]
[393221311,1762341042516,-300.0,0.00017999,2]
[393221313,1762341042526,-288.84967882,0.00017999,2]
[393221314,1762341042535,-500.0,0.00017999,2]
[393221315,1762341042545,-500.0,0.00017999,2]
[393221316,1762341042554,-266.17310046,0.00017999,2]
[393221317,1762341042563,-32365.0022228,0.00017999,2]
[393221318,1762341042573,-6861.5811943,0.00017999,2]
[393221320,1762341042582,-300.0,0.00017999,2]
[393221322,1762341042592,-500.0,0.00017999,2]
[393221324,1762341042601,-500.0,0.00017999,2]
[393221325,1762341042610,-500.0,0.00017999,2]
[393221326,1762341042620,-500.0,0.00017999,2]
[393221327,1762341042629,-500.0,0.00017999,2]
[393221328,1762341042639,-500.0,0.00017999,2]
[393221329,1762341042648,-500.0,0.00017999,2]
[393221330,1762341042658,-500.0,0.00017999,2]
[393221331,1762341042667,-500.0,0.00017999,2]
[393221332,1762341042677,-500.0,0.00017999,2]
[393221333,1762341042686,-500.0,0.00017999,2]
[393221334,1762341042699,-500.0,0.00017999,2]
[393221335,1762341042708,-589.41461623,0.00017999,2]
[393221336,1762341042718,-300.0,0.00017999,2]
[393221337,1762341042727,-666.0,0.00017999,2]
[393221338,1762341042737,-146324.3041651,0.00017999,2]
[393221339,1762341042746,-300.0,0.00017999,2]
[393221340,1762341042755,-300.0,0.00017999,2]
[393221341,1762341042765,-185.35723879,0.00017999,2]
[393221342,1762341042774,-518.86938305,0.00017999,2]
[393221343,1762341042791,-4779.0,0.00018,2]
[393221344,1762341042811,-2507566.95987594,0.00018,2]
[393221345,1762341042827,-883.81493502,0.00018,2]
[393221346,1762341042839,-16199.25564434,0.00018,2]
[393221347,1762341042856,-1164398.99597472,0.00018,2]
[393221348,1762341042884,-430.62277423,0.00018,2]
[393221349,1762341042960,-971.81396536,0.00018,2]
[393221350,1762341042978,-546.49895151,0.00018,2]
[393221351,1762341042997,-2597.11375217,0.00018,2]
[393221352,1762341043016,-893.590009,0.00018,2]
[393221353,1762341043034,-1367.59,0.00018,2]
[393221355,1762341043753,-150.0,0.00016961,2]
[393221356,1762341043766,-2044.68751137,0.00018,2]
[393221357,1762341043782,-21215.56941126,0.00018,2]
[393221358,1762341045937,-26660.98,0.00018,2]
[393221359,1762341045949,-29415.62555829,0.00018,2]
[393221360,1762341046044,-11448.0,0.00018,2]
[393221361,1762341046256,-17020.27195463,0.00018,2]
[393221362,1762341110750,4939231.08666694,0.00030137,120]
[393221363,1762341145062,500.0,0.00013001,2]
[393221364,1762341145244,500.0,0.00013001,2]
[393221365,1762341145508,500.7,0.00013001,2]
[393221366,1762341146168,500.0,0.00013001,2]
[393221367,1762341146557,200.89273424,0.00013001,2]
[393221368,1762341147724,1100.0,0.00013001,2]
[393221369,1762341148053,1100.0,0.00013001,2]
[393221370,1762341148392,1100.0,0.00013001,2]
[393221371,1762341148547,500.0,0.00013001,2]
[393221372,1762341148961,1100.0,0.00013001,2]
[393221373,1762341149002,500.0,0.00013001,2]
[393221374,1762341149038,500.0,0.00013001,2]
[393221375,1762341149081,500.0,0.00013001,2]
[393221376,1762341149195,500.0,0.00013001,2]
[393221377,1762341149292,1100.0,0.00013001,2]
[393221378,1762341149514,500.0,0.00013001,2]
[393221379,1762341149638,1100.0,0.00013001,2]
[393221380,1762341149727,500.0,0.00013001,2]
[393221381,1762341149800,500.0,0.00013001,2]
[393221382,1762341149882,500.0,0.00013001,2]
[393221383,1762341149969,500.5298232,0.00013001,2]
[393221384,1762341150076,500.0,0.00013001,2]
[393221385,1762341150474,357.53168842,0.00013001,2]
[393221386,1762341150521,1100.0,0.00013001,2]
[393221387,1762341150555,500.0,0.00013001,2]
[393221388,1762341150592,500.0,0.00013001,2]
[393221389,1762341150642,1100.0,0.00013001,2]
[393221390,1762341150679,500.0,0.00013001,2]
[393221391,1762341150714,500.0,0.00013001,2]
[393221392,1762341150751,500.0,0.00013001,2]
[393221393,1762341150821,1100.0,0.00013001,2]
[393221394,1762341150855,500.0,0.00013,2]
[393221395,1762341150895,500.0,0.00013001,2]
[393221396,1762341150930,500.0,0.00013001,2]
[393221397,1762341150963,500.0,0.00013001,2]
[393221398,1762341151170,370.48179252,0.00013001,2]
[393221399,1762341151200,397.2744252,0.00013001,2]
[393221400,1762341151221,332.24378228,0.00013001,2]
[393221401,1762341151254,500.0,0.00013,2]
[393221402,1762341151381,500.0,0.00013,2]
[393221403,1762341151547,505.08800945,0.00013,2]
[393221404,1762341151585,1100.0,0.00013001,2]
[393221405,1762341151628,500.0,0.00013,2]
[393221406,1762341151772,500.0,0.00013001,2]
[393221407,1762341151953,1100.0,0.00013001,2]
[393221408,1762341152082,500.0,0.00013,2]
[393221409,1762341152119,500.0,0.00013001,2]
[393221410,1762341152160,500.0,0.00013001,2]
[393221411,1762341152354,1100.0,0.00013001,2]
[393221412,1762341152593,500.0,0.00013,2]
[393221413,1762341152631,500.0,0.00013001,2]
[393221414,1762341152670,500.0,0.00013001,2]
[393221415,1762341152718,507.72146237,0.00013001,2]
[393221416,1762341152750,500.0,0.00013001,2]
[393221417,1762341152790,500.0,0.00013,2]
[393221418,1762341152825,766.92114999,0.00013,2]
[393221419,1762341152857,500.0,0.00013,2]
[393221420,1762341152931,500.0,0.00013001,2]
[393221421,1762341153070,500.0,0.00013,2]
[393221422,1762341153142,500.0,0.00013,2]
[393221423,1762341153355,303.41188575,0.00013001,2]
[393221424,1762341153384,796.58811425,0.00013001,2]
[393221425,1762341153417,500.0,0.00013001,2]
[393221426,1762341153490,500.0,0.00013,2]
[393221427,1762341153699,500.0,0.00013001,2]
[393221428,1762341153755,1100.0,0.00013001,2]
[393221429,1762341153845,500.0,0.00013,2]
[393221430,1762341153883,500.0,0.00013,2]
[393221431,1762341154028,500.0,0.00013001,2]
[393221432,1762341154097,1100.0,0.00013,2]
[393221433,1762341154209,595.03422616,0.00013,2]
[393221434,1762341154259,500.0,0.00013,2]
[393221435,1762341154370,500.0,0.00013001,2]
[393221436,1762341154629,500.0,0.00013,2]
[393221437,1762341154832,500.0,0.00013001,2]
[393221438,1762341154969,525.56633484,0.00013,2]
[393221439,1762341155163,500.0,0.00013,2]
[393221440,1762341155367,1100.0,0.00013,2]
[393221441,1762341155496,198.56045748,0.00013001,2]
[393221442,1762341155529,500.0,0.00013,2]
[393221443,1762341155883,500.0,0.00013,2]
[393221444,1762341156122,500.0,0.00013001,2]
[393221445,1762341156156,1100.0,0.00013,2]
[393221446,1762341156471,1100.0,0.00013,2]
[393221447,1762341156665,500.0,0.00013,2]
[393221448,1762341156950,1100.0,0.00013,2]
[393221449,1762341156990,970.59734235,0.00013,2]
[393221450,1762341157267,1100.0,0.00013,2]
[393221451,1762341157645,1100.0,0.00013,2]
[393221452,1762341158053,1100.0,0.00013,2]
[393221453,1762341158409,1100.0,0.00013,2]
[393221454,1762341158731,1100.0,0.00013,2]
[393221455,1762341159046,1100.0,0.00013,2]
[393221456,1762341159412,1100.0,0.00013,2]
[393221457,1762341159736,1100.0,0.00013,2]
[393221458,1762341160165,1374.24677085,0.00013,2]
[393221459,1762341227101,-203.28221121,0.00016356,2]
[393221460,1762341228627,-296.71778879,0.00016356,2]
[393221461,1762341228649,-20.49330734,0.00016356,2]
[393221478,1762341435475,500.0,0.00013001,2]
[393221479,1762341435902,500.0,0.00013001,2]
[393221480,1762341435949,500.0,0.00013001,2]
[393221481,1762341436200,500.0,0.00013001,2]
[393221482,1762341436248,500.0,0.00013,2]
[393221483,1762341436553,500.0,0.00013,2]
[393221484,1762341436892,500.0,0.00013001,2]
[393221485,1762341436964,778.63411476,0.00013,2]
[393221486,1762341437099,500.0,0.00013001,2]
[393221487,1762341437221,500.0,0.00013001,2]
[393221488,1762341437361,169.86666457,0.00013001,2]
[393221489,1762341437604,500.0,0.00013001,2]
[393221490,1762341437842,500.0,0.00013001,2]
[393221491,1762341438262,500.0,0.00013001,2]
[393221492,1762341438316,500.0,0.00013001,2]
[393221493,1762341438386,500.0,0.00013,2]
[393221494,1762341438626,500.0,0.00013001,2]
[393221495,1762341438704,641.17005069,0.00013,2]
[393221496,1762341438941,137.76151996,0.00013001,2]
[393221497,1762341438965,362.23848004,0.00013001,2]
[393221498,1762341439569,500.0,0.00013001,2]
[393221499,1762341440091,500.0,0.00013001,2]
[393221500,1762341440454,500.0,0.00013001,2]
[393221501,1762341440819,500.0,0.00013001,2]
[393221502,1762341441169,500.0,0.00013001,2]
[393221503,1762341441530,500.0,0.00013001,2]
[393221504,1762341441914,500.0,0.00013001,2]
[393221505,1762341442283,500.0,0.00013001,2]
[393221506,1762341442826,500.0,0.00013,2]
[393221507,1762341443007,500.0,0.00013,2]